[Event "Fagernes Chess Open 2024"]
[Site "Fagernes"]
[Date "2024.03.27"]
[Round "4.9"]
[White "Nordahl, Frederik"]
[Black "Johansson, Henrik"]
[Result "1/2-1/2"]
[ECO "B01"]
[WhiteElo "1675"]
[BlackElo "1736"]
[Annotator "NA RC"]
[PlyCount "63"]
[EventDate "2024.03.25"]
[EventType "swiss"]
[EventCountry "NOR"]
[SourceTitle "playchess.com"]
[Source "ChessBase"]
[SourceQuality "1"]
[TimeControl "40/6000+30:2400+30"]

1. e4 {[%emt 0:00:01]} d5 {[%emt 0:00:34]} 2. exd5 {[%emt 0:00:20]} Nf6 {[%emt 0:00:21]} 3. d4 {[%emt 0:00:06]} Bg4 {[%emt 0:01:02]} 4. Bb5+ {[%emt 0:00:12]} c6 {[%emt 0:05:05]} 5. dxc6 {[%emt 0:00:31]} Qa5+ {[%emt 0:01:20]} 6. Nc3 {[%emt 0:01:35]} bxc6 {[%emt 0:05:11]} 7. f3 {[%emt 0:03:34]} cxb5 {[%emt 0:01:51]} 8. fxg4 {[%emt 0:00:07]} Nc6 {[%emt 0:03:15]} 9. g5 {[%emt 0:01:46]} Nd5 {[%emt 0:05:14]} 10. Bd2 {[%emt 0:00:24]} Nxc3 {[%emt 0:02:44]} 11. bxc3 {[%emt 0:00:53]} e6 {[%emt 0:03:26]} 12. Nf3 {[%emt 0:01:54]} g6 {[%emt 0:13:36]} 13. O-O {[%emt 0:01:14]} Bg7 {[%emt 0:03:13]} 14. d5 {[%emt 0:05:50]} Ne5 {[%emt 0:07:39]} 15. Nxe5 {[%emt 0:00:21]} Bxe5 {[%emt 0:01:57]} 16. dxe6 {[%emt 0:00:09]} Qb6+ {[%emt 0:04:05]} 17. Kh1 {[%emt 0:00:16]} Qxe6 {[%emt 0:00:44]} 18. Qe2 {[%emt 0:00:24]} O-O {[%emt 0:04:37]} 19. Qxb5 {[%emt 0:00:37]} Qd6 {[%emt 0:03:29]} 20. h3 {[%emt 0:01:23]} Qxd2 {[%emt 0:05:39]} 21. Qxe5 {[%emt 0:00:07]} Rae8 {[%emt 0:01:24]} 22. Qd4 {[%emt 0:00:23]} Qxg5 {[%emt 0:05:21]} 23. Qxa7 {[%emt 0:00:07]} Qd2 {[%emt 0:03:58]} 24. a4 {[%emt 0:01:08]} Qxc3 {[%emt 0:01:18]} 25. Rfc1 {[%emt 0:00:17]} Re2 {[%emt 0:05:20]} 26. a5 {[%emt 0:00:41]} Rxc2 {[%emt 0:03:04]} 27. Rf1 {[%emt 0:00:13]} Qg3 {[%emt 0:01:19]} 28. Qb7 {[%emt 0:00:13]} Rc7 {[%emt 0:03:04]} 29. Qb6 {[%emt 0:00:35]} Rc2 {[%emt 0:00:42]} 30. Rg1 {[%emt 0:00:07]} Rb8 {[%emt 0:00:51]} 31. Qd4 {[%emt 0:00:48]} Rbb2 {[%emt 0:01:21]} 32. Qd8+ {[%emt 0:00:21]} 1/2-1/2

[Event "Fagernes Chess Open 2024"]
[Site "Fagernes"]
[Date "2024.03.27"]
[Round "5.1"]
[White "Sushrutha, Reddy"]
[Black "Strand, Amund Pihl"]
[Result "0-1"]
[ECO "B22"]
[WhiteElo "1707"]
[BlackElo "1860"]
[Annotator "NA RC"]
[PlyCount "122"]
[EventDate "2024.03.25"]
[EventType "swiss"]
[EventCountry "NOR"]
[SourceTitle "playchess.com"]
[Source "ChessBase"]
[SourceQuality "1"]
[TimeControl "40/6000+30:2400+30"]

1. e4 {[%emt 0:04:30]} c5 {[%emt 0:02:19]} 2. Nf3 {[%emt 0:00:14]} e6 {[%emt 0:00:05]} 3. c3 {[%emt 0:00:13]} Nf6 {[%emt 0:02:26]} 4. e5 {[%emt 0:00:32]} Nd5 {[%emt 0:00:37]} 5. d4 {[%emt 0:00:32]} cxd4 {[%emt 0:00:40]} 6. cxd4 {[%emt 0:01:46]} d6 {[%emt 0:01:07]} 7. Nc3 {[%emt 0:01:18]} Nc6 {[%emt 0:02:58]} 8. Bd3 {[%emt 0:04:22]} dxe5 {[%emt 0:11:16]} 9. dxe5 {[%emt 0:00:55]} Ndb4 {[%emt 0:18:13] B22: Sizilianisch (Alapin 2.c3).} 10. Bb1 {[%emt 0:04:43]} Qxd1+ {[%emt 0:00:18]} 11. Nxd1 {[%emt 0:01:33]} Nd5 {[%emt 0:01:09]} 12. O-O {[%emt 0:00:33]} Bc5 {[%emt 0:01:21]} 13. Nc3 {[%emt 0:02:51]} Nxc3 {[%emt 0:00:34]} 14. bxc3 {[%emt 0:00:04]} O-O {[%emt 0:02:15]} 15. Be4 {[%emt 0:00:20]} h6 {[%emt 0:23:10]} 16. Rb1 {[%emt 0:01:51]} Rd8 {[%emt 0:03:16]} 17. Rb5 {[%emt 0:02:04]} Bb6 {[%emt 0:00:52]} 18. Ba3 {[%emt 0:00:43]} Bd7 {[%emt 0:04:34]} 19. Bd6 {[%emt 0:03:04]} Rac8 {[%emt 0:06:14]} 20. Rd1 {[%emt 0:29:54]} Na5 {[%emt 0:06:16]} 21. Rxb6 {[%emt 0:00:38]} axb6 {[%emt 0:00:15]} 22. Be7 {[%emt 0:00:15]} Bc6 {[%emt 0:13:45]} 23. Rxd8+ {[%emt 0:00:30]} Rxd8 {[%emt 0:00:01]} 24. Bxd8 {[%emt 0:00:18]} Bxe4 {[%emt 0:00:06]} 25. Bxb6 {[%emt 0:00:33]} Nc4 {[%emt 0:00:34]} 26. Bc7 {[%emt 0:07:03]} Kf8 {[%emt 0:00:42]} 27. Nd4 {[%emt 0:01:44]} Ke7 {[%emt 0:01:07]} 28. f4 {[%emt 0:03:45]} Kd7 {[%emt 0:00:57]} 29. Bb8 {[%emt 0:00:57]} Kc8 {[%emt 0:00:37]} 30. Bd6 {[%emt 0:01:08]} Nxd6 {[%emt 0:00:27]} 31. exd6 {[%emt 0:00:18]} Kd7 {[%emt 0:00:11]} 32. Kf2 {[%emt 0:01:14]} Kxd6 {[%emt 0:01:40]} 33. g3 {[%emt 0:00:13]} Kd5 {[%emt 0:01:04]} 34. Ke3 {[%emt 0:01:03]} Bb1 {[%emt 0:00:26]} 35. a3 {[%emt 0:00:17]} Kc4 {[%emt 0:00:54]} 36. Kd2 {[%emt 0:01:02]} Be4 {[%emt 0:00:40]} 37. Ke3 {[%emt 0:06:15]} Bd5 {[%emt 0:00:15]} 38. Kd2 {[%emt 0:00:31]} g6 {[%emt 0:01:46]} 39. Kc2 {[%emt 0:03:30]} f6 {[%emt 0:00:19]} 40. Kd2 {[%emt 0:06:50]} e5 {[%emt 0:01:10]} 41. fxe5 {[%emt 0:40:12]} fxe5 {[%emt 0:40:12]} 42. Nc2 {[%emt 0:00:10]} Kb3 {[%emt 0:00:25]} 43. Ne3 {[%emt 0:00:17]} Be6 {[%emt 0:00:21]} 44. Kd3 {[%emt 0:01:42]} Bf5+ {[%emt 0:02:29]} 45. Kd2 {[%emt 0:01:03]} b5 {[%emt 0:01:24]} 46. g4 {[%emt 0:01:09]} Be4 {[%emt 0:00:19]} 47. g5 {[%emt 0:01:09]} h5 {[%emt 0:00:21]} 48. Nf1 {[%emt 0:04:01]} Kxa3 {[%emt 0:00:56]} 49. Ke3 {[%emt 0:01:28]} Bd5 {[%emt 0:00:00]} 50. Nd2 {[%emt 0:00:00]} Kb2 {[%emt 0:00:00]} 51. Kd3 {[%emt 0:00:00]} e4+ {[%emt 0:00:00]} 52. Kd4 $19 {[%emt 0:00:00]} e3 {[%emt 0:00:00]} 53. Kxe3 {[%emt 0:00:00]} Kxc3 {[%emt 0:00:00]} 54. Nb1+ {[%emt 0:00:00]} Kb2 {[%emt 0:00:00]} 55. Nd2 {[%emt 0:00:00]} b4 {[%emt 0:00:00]} 56. Kd4 {[%emt 0:00:00]} Bg8 {[%emt 0:00:00]} 57. Ne4 {[%emt 0:00:00]} Kc2 {[%emt 0:00:00]} 58. Nc5 {[%emt 0:00:00]} b3 {[%emt 0:00:00]} 59. Nxb3 {[%emt 0:00:00]} Bxb3 {[%emt 0:00:00]} 60. Ke5 {[%emt 0:00:00]} Kd2 {[%emt 0:00:00]} 61. Kf6 {[%emt 0:00:00]} Bc2 {[%emt 0:00:00]} 0-1

[Event "Fagernes Chess Open 2024"]
[Site "Fagernes"]
[Date "2024.03.27"]
[Round "5.2"]
[White "Kittilsen, Sigurd"]
[Black "Hausken, Andreas Skrede"]
[Result "1/2-1/2"]
[ECO "C45"]
[WhiteElo "1910"]
[BlackElo "1963"]
[Annotator "NA RC"]
[PlyCount "101"]
[EventDate "2024.03.25"]
[EventType "swiss"]
[EventCountry "NOR"]
[SourceTitle "playchess.com"]
[Source "ChessBase"]
[SourceQuality "1"]
[TimeControl "40/6000+30:2400+30"]

1. e4 {[%emt 0:06:24]} e5 {[%emt 0:07:14]} 2. Nf3 {[%emt 0:00:00]} Nc6 {[%emt 0:00:09]} 3. d4 {[%emt 0:00:00]} exd4 {[%emt 0:00:05]} 4. Nxd4 {[%emt 0:00:00]} Qf6 {[%emt 0:00:15]} 5. Nxc6 {[%emt 0:00:00]} Bc5 {[%emt 0:00:04]} 6. Qf3 {[%emt 0:00:00]} bxc6 {[%emt 0:02:42]} 7. Nd2 {[%emt 0:00:00]} a5 {[%emt 0:02:03]} 8. a4 {[%emt 0:00:00]} Bd4 {[%emt 0:02:46]} 9. Qxf6 {[%emt 0:00:00]} Nxf6 {[%emt 0:01:14]} 10. c3 {[%emt 0:10:22]} Bb6 {[%emt 0:01:43]} 11. Bd3 {[%emt 0:02:22]} O-O {[%emt 0:00:33]} 12. h3 {[%emt 0:02:51]} Re8 {[%emt 0:03:12]} 13. O-O {[%emt 0:00:36]} Ba6 {[%emt 0:01:08]} 14. Bxa6 {[%emt 0:04:42]} Rxa6 {[%emt 0:00:16]} 15. Re1 {[%emt 0:00:13]} d5 {[%emt 0:00:47]} 16. e5 {[%emt 0:00:05]} Nd7 {[%emt 0:00:29]} 17. Nf3 {[%emt 0:00:14]} Bc5 {[%emt 0:08:33]} 18. Bf4 {[%emt 0:12:31]} Nf8 {[%emt 0:02:03]} 19. Be3 {[%emt 0:10:36]} Bxe3 {[%emt 0:05:23]} 20. Rxe3 {[%emt 0:00:40]} Rb8 {[%emt 0:00:46]} 21. Rb1 {[%emt 0:16:12]} Rab6 {[%emt 0:01:20]} 22. Re2 {[%emt 0:20:03]} c5 {[%emt 0:01:37]} 23. Ne1 {[%emt 0:06:47]} Rb3 {[%emt 0:01:40]} 24. Rc2 {[%emt 0:00:51]} Ne6 {[%emt 0:01:15]} 25. Rd1 {[%emt 0:05:35]} c6 {[%emt 0:00:06]} 26. Rdd2 {[%emt 0:00:41]} c4 {[%emt 0:03:05]} 27. Nf3 {[%emt 0:00:35]} Nc5 {[%emt 0:00:07]} 28. Nd4 {[%emt 0:01:55]} R3b6 {[%emt 0:00:06]} 29. Nxc6 {[%emt 0:01:05]} Rxc6 {[%emt 0:00:07]} 30. Rxd5 {[%emt 0:00:10]} Nb3 {[%emt 0:02:03]} 31. Re2 {[%emt 0:01:24]} Re8 {[%emt 0:02:22]} 32. f4 {[%emt 0:03:38]} Rc5 {[%emt 0:01:08]} 33. Rd7 {[%emt 0:00:41]} Nc1 {[%emt 0:00:20]} 34. Re4 {[%emt 0:01:06]} Nd3 {[%emt 0:00:30]} 35. b3 {[%emt 0:01:28]} Nb2 {[%emt 0:07:12]} 36. Rd2 {[%emt 0:00:36]} cxb3 {[%emt 0:02:18]} 37. Rxb2 {[%emt 0:00:07]} Rxc3 {[%emt 0:00:03]} 38. Rd4 {[%emt 0:01:38]} Rec8 {[%emt 0:00:22]} 39. Rd5 {[%emt 0:00:47]} R3c4 {[%emt 0:02:41]} 40. Rxa5 {[%emt 0:00:56]} Rxf4 {[%emt 0:00:09]} 41. Rxb3 {[%emt 0:40:57]} Rc1+ {[%emt 0:40:06]} 42. Kh2 {[%emt 0:00:10]} h6 {[%emt 0:00:07]} 43. Ra8+ {[%emt 0:00:00]} Kh7 {[%emt 0:00:00]} 44. Rf3 {[%emt 0:00:00]} Rcc4 {[%emt 0:00:00]} 45. a5 {[%emt 0:00:00]} Rfe4 {[%emt 0:00:00]} 46. Rxf7 {[%emt 0:00:00]} Rxe5 {[%emt 0:00:00]} 47. Raa7 {[%emt 0:00:00]} Rg5 {[%emt 0:00:00]} 48. Rf3 {[%emt 0:00:00]} Ra4 {[%emt 0:00:00]} 49. a6 {[%emt 0:00:00]} Rg6 {[%emt 0:00:00]} 50. Rg3 {[%emt 0:00:00]} Raxa6 {[%emt 0:00:00]} 51. Rxg6 {[%emt 0:00:00]} 1/2-1/2

[Event "Fagernes Chess Open 2024"]
[Site "Fagernes"]
[Date "2024.03.27"]
[Round "5.3"]
[White "Spanton, Tim R"]
[Black "Brattgjerd, August Minh"]
[Result "1/2-1/2"]
[ECO "C01"]
[WhiteElo "1876"]
[BlackElo "1689"]
[Annotator "NA RC"]
[PlyCount "103"]
[EventDate "2024.03.25"]
[EventType "swiss"]
[EventCountry "NOR"]
[SourceTitle "playchess.com"]
[Source "ChessBase"]
[SourceQuality "1"]
[TimeControl "40/6000+30:2400+30"]

1. e4 {[%emt 0:00:03]} e6 {[%emt 0:00:01]} 2. d4 {[%emt 0:00:07]} d5 {[%emt 0:00:02]} 3. exd5 {[%emt 0:00:05]} exd5 {[%emt 0:00:07]} 4. Nf3 {[%emt 0:00:03]} Bd6 {[%emt 0:00:15]} 5. c4 {[%emt 0:00:06]} c6 {[%emt 0:00:37]} 6. Nc3 {[%emt 0:00:18]} Ne7 {[%emt 0:00:11]} 7. Bd3 {[%emt 0:01:17]} O-O {[%emt 0:01:30]} 8. O-O {[%emt 0:00:52]} dxc4 {[%emt 0:02:23]} 9. Bxc4 {[%emt 0:00:28]} Bg4 {[%emt 0:00:22]} 10. Re1 {[%emt 0:05:21]} Qc7 {[%emt 0:01:39]} 11. h3 {[%emt 0:00:47]} Bh5 {[%emt 0:00:06]} 12. Qe2 {[%emt 0:12:42]} Nd7 {[%emt 0:01:54]} 13. Ne4 {[%emt 0:02:11]} Bb4 {[%emt 0:01:16]} 14. Rd1 {[%emt 0:01:05]} Rae8 {[%emt 0:05:30]} 15. Bd2 {[%emt 0:04:13]} Bxd2 {[%emt 0:01:50]} 16. Rxd2 {[%emt 0:00:20]} Nd5 {[%emt 0:00:15]} 17. Qd3 {[%emt 0:10:36]} Nf4 {[%emt 0:04:44]} 18. Qe3 {[%emt 0:02:13]} Bg6 {[%emt 0:01:41]} 19. Ne5 {[%emt 0:01:26]} Nxe5 {[%emt 0:05:18]} 20. Qxf4 {[%emt 0:00:51]} Nf3+ {[%emt 0:00:26]} 21. Qxf3 {[%emt 0:00:37]} Bxe4 {[%emt 0:00:12]} 22. Qb3 {[%emt 0:03:06]} Rd8 {[%emt 0:05:18]} 23. Rad1 {[%emt 0:01:38]} Bd5 {[%emt 0:00:26]} 24. Re2 {[%emt 0:09:04]} Rfe8 {[%emt 0:02:20]} 25. Rxe8+ {[%emt 0:01:29]} Rxe8 {[%emt 0:00:05]} 26. Bxd5 {[%emt 0:00:15]} cxd5 {[%emt 0:01:03]} 27. Qxd5 {[%emt 0:00:42]} Qc2 {[%emt 0:00:49]} 28. Qb3 {[%emt 0:00:46]} Qxb3 {[%emt 0:00:48]} 29. axb3 {[%emt 0:00:05]} Rd8 {[%emt 0:01:53]} 30. Kf1 {[%emt 0:00:26]} Kf8 {[%emt 0:00:53]} 31. Ke2 {[%emt 0:00:15]} Rd5 {[%emt 0:01:08]} 32. Ke3 {[%emt 0:00:38]} Ke7 {[%emt 0:01:21]} 33. Rc1 {[%emt 0:00:32]} Kd7 {[%emt 0:00:10]} 34. f4 {[%emt 0:03:42]} Rb5 {[%emt 0:01:01]} 35. Rc3 {[%emt 0:00:19]} f5 {[%emt 0:00:34]} 36. Kd3 {[%emt 0:00:42]} Rb6 {[%emt 0:03:54]} 37. g4 {[%emt 0:03:42]} g6 {[%emt 0:02:16]} 38. Kd2 {[%emt 0:03:59]} Rb4 {[%emt 0:05:02]} 39. Rd3 {[%emt 0:01:59]} Rb6 {[%emt 0:06:43]} 40. gxf5 {[%emt 0:00:44]} gxf5 {[%emt 0:00:02]} 41. Rg3 {[%emt 0:40:36]} Rh6 {[%emt 0:41:44]} 42. Kd3 {[%emt 0:04:38]} Kd6 {[%emt 0:00:56]} 43. Kc4 {[%emt 0:00:24]} a6 {[%emt 0:00:47]} 44. d5 {[%emt 0:00:59]} Rh4 {[%emt 0:00:14]} 45. Rf3 {[%emt 0:00:20]} b6 {[%emt 0:00:29]} 46. b4 {[%emt 0:00:33]} b5+ {[%emt 0:01:01]} 47. Kd4 {[%emt 0:00:13]} h6 {[%emt 0:00:40]} 48. b3 {[%emt 0:01:08]} h5 {[%emt 0:00:35]} 49. Ke3 {[%emt 0:04:41]} Kxd5 {[%emt 0:00:47]} 50. Kd3 {[%emt 0:01:17]} Kc6 {[%emt 0:00:44]} 51. Kc3 {[%emt 0:02:14]} Kd5 {[%emt 0:01:48]} 52. Kd3 {[%emt 0:00:00]} 1/2-1/2

[Event "Fagernes Chess Open 2024"]
[Site "Fagernes"]
[Date "2024.03.27"]
[Round "5.4"]
[White "Ali, Karim"]
[Black "Lahlum, Ida"]
[Result "1-0"]
[ECO "B01"]
[WhiteElo "1855"]
[BlackElo "1755"]
[Annotator "NA RC"]
[PlyCount "67"]
[EventDate "2024.03.25"]
[EventType "swiss"]
[EventCountry "NOR"]
[SourceTitle "playchess.com"]
[Source "ChessBase"]
[SourceQuality "1"]
[TimeControl "40/6000+30:2400+30"]

1. e4 {[%emt 0:01:16]} d5 {[%emt 0:00:06]} 2. exd5 {[%emt 0:00:12]} Qxd5 {[%emt 0:00:05]} 3. Nf3 {[%emt 0:00:09]} Nf6 {[%emt 0:01:45]} 4. d4 {[%emt 0:00:19]} c6 {[%emt 0:01:35]} 5. c4 {[%emt 0:00:47]} Qa5+ {[%emt 0:03:19]} 6. Bd2 {[%emt 0:05:12]} Qc7 {[%emt 0:03:17]} 7. Nc3 {[%emt 0:00:14]} Bf5 {[%emt 0:01:51]} 8. Be2 {[%emt 0:02:27]} Nbd7 {[%emt 0:05:40]} 9. Nh4 {[%emt 0:04:22]} Bg6 {[%emt 0:06:28]} 10. O-O {[%emt 0:05:33]} e6 {[%emt 0:03:14]} 11. Be3 {[%emt 0:03:34]} O-O-O {[%emt 0:08:39]} 12. Qa4 {[%emt 0:03:20]} Kb8 {[%emt 0:03:46]} 13. b4 {[%emt 0:02:45]} Nb6 {[%emt 0:08:20]} 14. Qb3 {[%emt 0:04:28]} Be7 {[%emt 0:09:34]} 15. g3 {[%emt 0:01:23]} Ka8 {[%emt 0:05:56]} 16. a4 {[%emt 0:02:40]} Be4 {[%emt 0:04:45]} 17. Nxe4 {[%emt 0:02:49]} Nxe4 {[%emt 0:00:09]} 18. Nf3 {[%emt 0:00:09]} g5 {[%emt 0:04:41]} 19. a5 {[%emt 0:06:50]} Nd7 {[%emt 0:00:42]} 20. b5 {[%emt 0:13:28]} c5 {[%emt 0:03:28]} 21. b6 {[%emt 0:03:21]} Qc6 {[%emt 0:01:40]} 22. bxa7 {[%emt 0:10:14]} Kxa7 {[%emt 0:00:51]} 23. Rfb1 {[%emt 0:01:57]} f5 {[%emt 0:04:51]} 24. d5 {[%emt 0:10:25]} exd5 {[%emt 0:01:48]} 25. cxd5 {[%emt 0:00:09]} Qc7 {[%emt 0:00:48]} 26. Bd3 {[%emt 0:03:59]} Bf6 {[%emt 0:01:37]} 27. Bxe4 {[%emt 0:02:46]} fxe4 {[%emt 0:00:49]} 28. Nxg5 {[%emt 0:02:42]} Bxa1 {[%emt 0:01:52]} 29. Ne6 {[%emt 0:00:15]} Qc8 {[%emt 0:01:23]} 30. Nxc5 {[%emt 0:04:28]} Nxc5 {[%emt 0:06:14]} 31. Qb6+ {[%emt 0:00:07]} Ka8 {[%emt 0:00:17]} 32. Bxc5 {[%emt 0:00:17]} Qb8 {[%emt 0:01:30]} 33. a6 {[%emt 0:00:10]} Rd7 {[%emt 0:01:26]} 34. Rxa1 {[%emt 0:00:31]} 1-0

[Event "Fagernes Chess Open 2024"]
[Site "Fagernes"]
[Date "2024.03.27"]
[Round "5.5"]
[White "Kuzmenko, Mykhailo"]
[Black "Halvorsen, Benjamin"]
[Result "0-1"]
[ECO "B13"]
[WhiteElo "1747"]
[BlackElo "1848"]
[Annotator "NA RC"]
[PlyCount "97"]
[EventDate "2024.03.25"]
[EventType "swiss"]
[EventCountry "NOR"]
[SourceTitle "playchess.com"]
[Source "ChessBase"]
[SourceQuality "1"]
[TimeControl "40/6000+30:2400+30"]

1. d4 {[%emt 0:00:08]} d5 {[%emt 0:03:37]} 2. Bf4 {[%emt 0:00:05]} c5 {[%emt 0:00:12]} 3. e3 {[%emt 0:00:46]} cxd4 {[%emt 0:00:07]} 4. exd4 {[%emt 0:00:20]} Nc6 {[%emt 0:00:10]} 5. c3 {[%emt 0:00:37]} f6 {[%emt 0:00:20]} 6. Bd3 {[%emt 0:02:50] B13: Caro-Kann (Abtausch-Variante 4.c4).} e5 {[%emt 0:00:35]} 7. Qh5+ {[%emt 0:03:41]} g6 {[%emt 0:00:13]} 8. Bxg6+ {[%emt 0:00:05]} hxg6 {[%emt 0:00:04]} 9. Qxg6+ {[%emt 0:06:40]} Kd7 {[%emt 0:03:54]} 10. dxe5 {[%emt 0:13:52]} fxe5 {[%emt 0:03:17]} 11. Bg3 {[%emt 0:09:39]} Qf6 {[%emt 0:03:38]} 12. Qd3 {[%emt 0:02:07]} Nge7 {[%emt 0:01:06]} 13. Nd2 {[%emt 0:03:01]} Bh6 {[%emt 0:13:22]} 14. Ne4 {[%emt 0:18:23]} Qg6 {[%emt 0:09:11]} 15. Rd1 {[%emt 0:00:31]} Kc7 {[%emt 0:07:36]} 16. Nc5 {[%emt 0:02:11]} Qxd3 {[%emt 0:00:20]} 17. Nxd3 {[%emt 0:00:43]} Ng6 {[%emt 0:05:45]} 18. Ne2 {[%emt 0:05:01]} Bf5 {[%emt 0:04:23]} 19. O-O {[%emt 0:01:06]} Rad8 {[%emt 0:02:17]} 20. b4 {[%emt 0:00:20]} b5 {[%emt 0:12:43]} 21. Nd4 {[%emt 0:05:01]} Nxd4 {[%emt 0:01:17]} 22. cxd4 {[%emt 0:00:54]} Bxd3 {[%emt 0:00:47]} 23. Rxd3 {[%emt 0:00:15]} Nf4 {[%emt 0:05:20]} 24. Bxf4 {[%emt 0:04:09]} exf4 {[%emt 0:00:15]} 25. g4 {[%emt 0:07:56]} Bg5 {[%emt 0:02:18]} 26. Kg2 {[%emt 0:00:53]} Rhe8 {[%emt 0:03:55]} 27. Rh1 {[%emt 0:03:48]} Bh4 {[%emt 0:00:27]} 28. Rf3 {[%emt 0:00:45]} Re4 {[%emt 0:00:25]} 29. Rd1 {[%emt 0:02:31]} Bf6 {[%emt 0:00:42]} 30. Rfd3 {[%emt 0:01:45]} Kb6 {[%emt 0:00:50]} 31. Rh3 {[%emt 0:02:08]} Rxd4 {[%emt 0:01:36]} 32. Re1 {[%emt 0:00:54]} Re4 {[%emt 0:01:55]} 33. Rxe4 {[%emt 0:01:10]} dxe4 {[%emt 0:00:02]} 34. Rh6 {[%emt 0:00:29]} Rd6 {[%emt 0:02:21]} 35. h4 {[%emt 0:00:37]} Kc6 {[%emt 0:01:55]} 36. g5 {[%emt 0:00:42]} Bc3 {[%emt 0:01:28]} 37. Rh7 {[%emt 0:00:40]} Re6 {[%emt 0:01:42]} 38. Kf1 {[%emt 0:02:31]} e3 {[%emt 0:04:40]} 39. fxe3 {[%emt 0:00:14]} fxe3 {[%emt 0:00:09]} 40. Ke2 {[%emt 0:00:12]} Bd4 {[%emt 0:00:53]} 41. h5 {[%emt 0:40:24]} Re5 {[%emt 0:40:36]} 42. g6 {[%emt 0:03:17]} Rg5 {[%emt 0:00:08]} 43. Kd3 {[%emt 0:03:44]} Kd6 {[%emt 0:02:35]} 44. Rh6 {[%emt 0:03:44]} Kd5 {[%emt 0:06:17]} 45. Rh7 {[%emt 0:00:24]} Ke6 {[%emt 0:00:23]} 46. Rh6 {[%emt 0:00:00]} (46. Kxd4 {leads to mate.} e2 47. Rc7 e1=Q (47... e1=R $2 48. Rc6+ Kf5 49. Rc5+ Kg4 50. h6 $19) (47... Rd5+ {is a self mate.} 48. Kc3 e1=Q+ 49. Kb2 Qe5+ 50. Kc2 Qxc7+ 51. Kb1 Rd1+ 52. Kb2 Qc1+ 53. Kb3 Rd3#) 48. Rc6+ Kd7 49. Rc3 Rg4+ (49... Rxh5 {gets mated.} 50. Rf3 Rh4+ 51. Kd3 Qe4+ 52. Kc3 Qxf3+ 53. Kd2 Rh2+ 54. Ke1 Qh1#) (49... Qe5+ 50. Kd3 Rg3+ 51. Kd2 Rxc3 52. Kd1 Qe3 53. g7 Rc1#) 50. Kd3 Qe4+ (50... Rxb4 51. Kc2 Qe4+ 52. Rd3+ Rd4 53. Kd2 Rxd3+ 54. Kc1 Qe2 55. h6 Rd1#) (50... Rg3+ 51. Kd4 Qxc3+ 52. Kd5 Qe3 53. h6 Rg5#) 51. Kd2 Rg2+ (51... Qxb4 52. h6 Rg2+ 53. Kd3 Rg3+ 54. Kd2 Rxc3 55. g7 Qb2+ 56. Ke1 Rc1#) 52. Kd1 Qe2+ 53. Kc1 Rg1#) (46. Rc7 $19 Bb6 47. Rc8) 46... Rg2 {[%emt 0:00:00]} 47. g7+ {[%emt 0:00:00]} Kd5 {[%emt 0:00:00]} 48. Rd6+ {[%emt 0:00:00]} Kxd6 {[%emt 0:00:00]} 49. h6 {[%emt 0:00:00]} 0-1

[Event "Fagernes Chess Open 2024"]
[Site "Fagernes"]
[Date "2024.03.27"]
[Round "5.6"]
[White "Andersen, Dag"]
[Black "Lie, Bjorn"]
[Result "1-0"]
[ECO "D03"]
[WhiteElo "1899"]
[BlackElo "1690"]
[Annotator "NA RC"]
[PlyCount "105"]
[EventDate "2024.03.25"]
[EventType "swiss"]
[EventCountry "NOR"]
[SourceTitle "playchess.com"]
[Source "ChessBase"]
[SourceQuality "1"]
[TimeControl "40/6000+30:2400+30"]

1. d4 {[%emt 0:00:15]} Nf6 {[%emt 0:00:07]} 2. Nf3 {[%emt 0:01:08]} g6 {[%emt 0:00:45]} 3. Bg5 {[%emt 0:00:14]} Bg7 {[%emt 0:01:06]} 4. Nbd2 {[%emt 0:00:13]} d5 {[%emt 0:00:59]} 5. e3 {[%emt 0:01:32]} c6 {[%emt 0:04:29]} 6. Bd3 {[%emt 0:00:34]} Nbd7 {[%emt 0:03:57]} 7. O-O {[%emt 0:03:35]} O-O {[%emt 0:00:25]} 8. h3 {[%emt 0:00:49] D03: 1 d4 d5 2 Nf3 Nf6 3 Bg5, including Torre Attack with early ...d5.} Re8 {[%emt 0:01:47]} 9. Bf4 {[%emt 0:02:03]} Nh5 {[%emt 0:12:11]} 10. Bh2 {[%emt 0:00:53]} e5 {[%emt 0:01:58]} 11. dxe5 {[%emt 0:01:04]} Nxe5 {[%emt 0:00:10]} 12. Nxe5 {[%emt 0:01:16]} Bxe5 {[%emt 0:00:19]} 13. Bxe5 {[%emt 0:00:47]} Rxe5 {[%emt 0:00:01]} 14. Nf3 {[%emt 0:00:56]} Re8 {[%emt 0:01:01]} 15. c3 {[%emt 0:02:20]} Ng7 {[%emt 0:13:10]} 16. Qc2 {[%emt 0:05:50]} Qf6 {[%emt 0:03:15]} 17. Nh2 {[%emt 0:06:09]} Qg5 {[%emt 0:14:27]} 18. Kh1 {[%emt 0:01:05]} Bf5 {[%emt 0:03:12]} 19. Rae1 {[%emt 0:02:59]} Bxd3 {[%emt 0:00:34]} 20. Qxd3 {[%emt 0:00:08]} Qf5 {[%emt 0:00:40]} 21. Qd2 {[%emt 0:01:19]} Qe4 {[%emt 0:09:15]} 22. Nf3 {[%emt 0:06:17]} Nf5 {[%emt 0:04:19]} 23. Qd1 {[%emt 0:09:09]} Nh4 {[%emt 0:01:43]} 24. Nxh4 {[%emt 0:01:30]} Qxh4 {[%emt 0:00:02]} 25. Qb3 {[%emt 0:00:59]} Re7 {[%emt 0:02:44]} 26. Rd1 {[%emt 0:00:33]} Qc4 {[%emt 0:10:08]} 27. Qxc4 {[%emt 0:05:51]} dxc4 {[%emt 0:00:02]} 28. Rd4 {[%emt 0:00:32]} b5 {[%emt 0:00:46]} 29. Rfd1 {[%emt 0:00:24]} Rc8 {[%emt 0:01:07]} 30. g4 {[%emt 0:00:50]} Rcc7 {[%emt 0:02:34]} 31. Kg2 {[%emt 0:00:49]} Kg7 {[%emt 0:03:46]} 32. g5 {[%emt 0:02:06]} Re6 {[%emt 0:04:18]} 33. h4 {[%emt 0:00:33]} h5 {[%emt 0:02:04]} 34. Kf3 {[%emt 0:00:55]} Ree7 {[%emt 0:02:17]} 35. Rd6 {[%emt 0:01:43]} Re6 {[%emt 0:02:19]} 36. Kf4 {[%emt 0:02:09]} Rce7 {[%emt 0:02:50]} 37. Rxe6 {[%emt 0:00:41]} Rxe6 {[%emt 0:02:49]} 38. e4 {[%emt 0:00:35]} a5 {[%emt 0:00:48]} 39. e5 {[%emt 0:01:19]} Kf8 {[%emt 0:00:31]} 40. a3 {[%emt 0:01:49]} Ke7 {[%emt 0:00:52]} 41. Ke4 {[%emt 0:41:37]} c5 {[%emt 0:02:50]} 42. f4 {[%emt 0:00:00]} Rc6 {[%emt 0:07:53]} 43. f5 {[%emt 0:00:00]} Rc7 {[%emt 0:05:18]} 44. f6+ {[%emt 0:00:00]} Ke8 {[%emt 0:00:30]} 45. Rd6 {[%emt 0:00:00]} a4 {[%emt 0:08:41]} 46. Kd5 {[%emt 0:00:00]} b4 {[%emt 0:00:49]} 47. Rc6 {[%emt 0:00:00]} bxa3 {[%emt 0:03:03]} 48. bxa3 $18 {[%emt 0:00:00]} (48. Rxc7 $142 Kd8 49. Kc6 (49. Rxf7 axb2 50. Kd6 Kc8 51. Rc7+ Kb8 52. f7 b1=Q 53. f8=Q#) 49... axb2 50. e6 (50. Rxf7 Ke8 51. Re7+ Kf8 52. Kd7 Kg8 53. Ke8 Kh8 54. f7 b1=Q 55. f8=Q#) 50... b1=Q 51. e7+ Ke8 52. Rc8#) 48... Rb7 {[%emt 0:00:30]} 49. Kxc5 {[%emt 0:00:00]} Rb3 {[%emt 0:00:32]} 50. Kxc4 {[%emt 0:00:00]} Rxa3 {[%emt 0:00:31]} 51. Kd5 {[%emt 0:00:00]} Ra2 {[%emt 0:00:57]} 52. Ra6 {[%emt 0:00:00]} Rd2+ {[%emt 0:05:24]} 53. Kc6 {[%emt 0:00:00]} 1-0